{"text_format":"3","workbook":"xlsx","n_sheets":1,"sheets":["Original"],"not_rendered":{"defined_names":1},"read":"whole","date_system":"1900"}

{"sheet":"Original","index":0,"n_rows":132,"n_cols":9,"rows_kept":132,"merged":[[51,2,51,4],[52,2,52,4],[53,2,53,4],[54,2,54,4],[55,2,55,4],[56,2,56,4],[57,2,57,4],[58,2,58,4],[59,2,59,4],[60,2,60,4],[61,2,61,4],[62,2,62,4],[63,2,63,4],[64,2,64,4],[65,2,65,4],[66,2,66,4],[67,2,67,4],[68,2,68,4],[69,2,69,4],[70,2,70,4],[71,2,71,4],[72,2,72,4],[73,2,73,4],[74,2,74,4],[75,2,75,4],[76,2,76,4],[77,2,77,4],[78,2,78,4],[79,2,79,4],[80,2,80,4],[81,2,81,4],[82,2,82,4],[83,2,83,4],[84,2,84,4],[86,2,86,4],[87,2,87,4],[88,2,88,4],[89,2,89,4],[90,2,90,4],[91,2,91,4],[92,2,92,4],[93,2,93,4],[94,2,94,4],[95,2,95,4],[96,2,96,4],[97,2,97,4],[98,2,98,4],[99,2,99,4],[100,2,100,4],[101,2,101,4],[102,2,102,4],[103,2,103,4],[104,2,104,4],[105,2,105,4],[106,2,106,4],[107,2,107,4],[108,2,108,4],[109,2,109,4],[110,2,110,4],[111,2,111,4],[112,2,112,4],[113,2,113,4],[114,2,114,4],[115,2,115,4],[116,2,116,4],[117,2,117,4],[118,2,118,4],[119,2,119,4]]}
[null,"ITEM DESCRIPTION","BRAND:","MFG ITEM #:","VENDOR'S ITEM #:","UNIT / BASE FOR AWARD","PRICE PER UNIT","CASE\nPACK","PRICE PER CASE"]
[0,"Example","Medical Supplies","ABC12345","DEF6789","Each",{"v":2,"d":"$2.0000"},"50/bx\n10 bx/case",{"v":1000,"d":"$1,000.0000"}]
[1,"Adenocard; 6 mg / 2 ml - Vial",{"$nulls":3},"Each"]
[2,"Adenocard; 12 mg / 4 ml - Vial",{"$nulls":3},"Each"]
[3,"Albuterol; 2.5 mg / 3 ml - Unit dose",{"$nulls":3},"Each"]
[4,"Amiodarone; 150 mg / 3 ml - Vial",{"$nulls":3},"Each"]
[5,"Atropine; 1 mg / 10 ml - Luer",{"$nulls":3},"Each"]
[6,"Benadryl ; 50 mg - Vial",{"$nulls":3},"Each"]
[7,"Brethine; 1 mg - Vial",{"$nulls":3},"Each"]
[8,"Dextrose; 50 % 25 gm - Luer",{"$nulls":3},"Each"]
[9,"Diazepam; 10 mg / 2 ml - Luer locking",{"$nulls":3},"Each"]
[10,"Diltiazem; 25 mg (5mg  /ml) - Vial",{"$nulls":3},"Each"]
[11,"Dopamine; 200 mg / 5 ml - Vial",{"$nulls":3},"Each"]
[12,"Epinephrine 1:1,000  ; 30 mg  / 30 ml - Vial",{"$nulls":3},"Each"]
[13,"Epinephrine 1:10,000 ; 1 mg / 10 ml - Luer",{"$nulls":3},"Each"]
[14,"Etomidate (Amidate); 40 mg / 20 ml - Vial",{"$nulls":3},"Each"]
[15,"Fentanyl; 0.250 mg / 5 ml - Vial Vendors quoting 0.05mg/5ml only",{"$nulls":3},"Each"]
[16,"Glucagon; 1 mg (1 unit)",{"$nulls":3},"Each"]
[17,"Haloperidol; 5 mg / 1 ml - Vial",{"$nulls":3},"Each"]
[18,"Insta-Glucose; 31 g - Tube",{"$nulls":3},"Each"]
[19,"Lasix (same as Furosemide?); 40 mg / 4 ml - Luer",{"$nulls":3},"Each"]
[20,"Lidocaine; 100 mg / 5 ml - Luer",{"$nulls":3},"Each"]
[21,"Lidocaine w/Dextrose; 2 gm/ Dextrose 5% / 500 ml - Pre-mix drip bag",{"$nulls":3},"Each"]
[22,"Lopressor (Metoprolol); 5 mg / 5 ml - Vial",{"$nulls":3},"Each"]
[23,"Magnesium Sulfate ; 5 gm / 10ml - Luer",{"$nulls":3},"Each"]
[24,"Magnesium Sulfate ; 5 gm / 10ml - Vial",{"$nulls":3},"Each"]
[25,"Midazolam; 10 mg / 2 ml - Vial",{"$nulls":3},"Each"]
[26,"Morphine Sulfate; 10 mg / 1 ml - Pre-filled",{"$nulls":3},"Each"]
[27,"Narcan; 2 mg / 2 ml - Luer",{"$nulls":3},"Each"]
[28,"Narcan; 2 mg / 2 ml - Vial",{"$nulls":3},"Each"]
[29,"Nitroglycerin; 50 mg / 250 ml   200 mcg / ml - Pre-mix drip",{"$nulls":3},"Each"]
[30,"Nitrolingual; 8.5 gm spray",{"$nulls":3},"Each"]
[31,"Norcuron (Vecuronium Bromide); 20 mg / 25 ml - Vial",{"$nulls":3},"Each"]
[32,"Odansetron; 4 mg / 2 ml - Vial",{"$nulls":3},"Each"]
[33,"Procainamide; 1000 mg / 2 ml - Vial",{"$nulls":3},"Each"]
[34,"Rocuronium (Zemuron); 50 mg / 5 ml - Vial",{"$nulls":3},"Each"]
[35,"Sodium Bicarbonate; 50 MEQ - Luer",{"$nulls":3},"Each"]
[36,"Sodium Chloride Flush; 10 ml - Luer",{"$nulls":3},"Each"]
[37,"Solu-Medrol; 125 mg / 2 ml - Vial",{"$nulls":3},"Each"]
[38,"Succinylcholine; (200 mg / ml) 10 ml - Vial",{"$nulls":3},"Each"]
[39,"Thiamine; 200 mg / 2 ml - Vial",{"$nulls":3},"Each"]
[40,"Tranexamic Acid; 1000 mg / 10 ml - Vial",{"$nulls":3},"Each"]
[41,"Unistik 3 Extra Safety Lancets; 21G Depth 2.0 mm",{"$nulls":3},"Each"]
[42,"Vasopressin; 20 units / 1 ml - Vial",{"$nulls":3},"Each"]
[43,"Xoponex; 0.63 mg / 3 ml - Unit dose",{"$nulls":3},"Each"]
[44,"Ipratropium Bromide / Albuterol (DuoNeb), 0.5mg / 3.0mg",{"$nulls":3},"Each"]
[45,"Ketamine, Class III, 50mg / ml, 10ml Vial",{"$nulls":3},"Each"]
[46,"Levophed, 0.1%, 4mg/4ml Vial",{"$nulls":3},"Each"]
[47,"M.A.D. (Mucosal Atomization Device); ",{"$nulls":3},"Each"]
[48,"Sodium Cloride N.S.; 0.9%, 1000 ml bag",{"$nulls":3},"Each"]
[49,"Sodium Cloride N.S.; 0.9%, 500 ml bag",{"$nulls":3},"Each"]
[50,"Micro Drip Sets; Primary Gravity IV Set with SafeLine® Split Septum Injection Site and ULTRASITE® Injection Site ; 15 drops / ml (86\" long)","B. BROWN PRODUCT ONLY; ITEM # US1160, NO SUBSTITUTIONS",null,null,"Each",{"$f":"+I52/H52","v":0},50]
[51,"Micro Drip Sets; Primary Gravity IV Set with SafeLine® Split Septum Injection Site and ULTRASITE® Injection Site ; 60 drops / ml (86\" long)","B. BROWN PRODUCT ONLY; ITEM # US1165, NO SUBSTITUTIONS",null,null,"Each",0,50]
[52,"Protective IV Plus Catheters; 14 ga x 1.25\"","SMITH'S MEDICAL PRODUCT ONLY; ITEM # 3068-01; NO SUBSTITUTIONS",null,null,"Each",0,200]
[53,"Protective IV Plus Catheters; 16 ga x 1.25\"","SMITH'S MEDICAL PRODUCT ONLY; ITEM # 3062-01; NO SUBSTITUTIONS",null,null,"Each",0,200]
[54,"Protective IV Plus Catheters; 18 ga x 1.25\"","SMITH'S MEDICAL PRODUCT ONLY; ITEM # 3065-01; NO SUBSTITUTIONS",null,null,"Each",0,200]
[55,"Protective IV Plus Catheters; 20 ga x 1.25\"","SMITH'S MEDICAL PRODUCT ONLY; ITEM # 3066-01; NO SUBSTITUTIONS",null,null,"Each",0,200]
[56,"Protective IV Plus Catheters; 22 ga x 1\"","SMITH'S MEDICAL PRODUCT ONLY; ITEM # 3060-01; NO SUBSTITUTIONS",null,null,"Each",0,200]
[57,"Protective IV Plus Catheters; 24 ga x 0.75\"","SMITH'S MEDICAL PRODUCT ONLY; ITEM # 3063-01; NO SUBSTITUTIONS",null,null,"Each",0,200]
[58,"Acuvance Plus Safety I.V. Self-Blunting Needle Catheter; 14 ga X 2”","SMITH'S MEDICAL PRODUCT ONLY; ITEM # 3358; NO SUBSTITUTIONS",null,null,"Each",0,200]
[59,"I.V. Solution Dextrose Injection D5W; 50 ml bag","BAXTER PRODUCT ONLY; ITEM # 2B0086; NO SUBSTITUTIONS",null,null,"Each",0,96]
[60,"I.V. Solution Sodium Chloride Injection; 100 ml bag","BAXTER PRODUCT ONLY; ITEM # 2B1307; NO SUBSTITUTIONS",null,null,"Each",0,96]
[61,"Cannula Dual Twinpak Syringe Filling Device ","BECKTON-DICKINSON PRODUCT ONLY; ITEM # 303390; NO SUBSTITUTIONS",null,null,"Each",0,100]
[62,"Hypodermic Syringe Needle; 25 ga x 5/8\"","BECKTON-DICKINSON PRODUCT ONLY; ITEM # 305122; NO SUBSTITUTIONS",null,null,"1000 Each",0,1000]
[63,"Hypodermic Syringe Needle; 21 ga x 1 1/2\"","BECKTON-DICKINSON PRODUCT ONLY; ITEM # 305167; NO SUBSTITUTIONS",null,null,"1000 Each",0,1000]
[64,"Hypodermic Syringe Needle; 18 ga x 1\"","BECKTON-DICKINSON PRODUCT ONLY; ITEM # 305195; NO SUBSTITUTIONS",null,null,"1000 Each",0,1000]
[65,"Universal I.V Standard Pump Set; Catalog # 1201NL","MEDICAL TECHNOLOGY PRODUCTS ONLY; ITEM # ; NO SUBSTITUTIONS",null,null,"Each",0,50]
[66,"ET Tube Flexi Set, Cuffed; 5.0 mm","RUSCH CORPORATION PRODUCT ONLY; ITEM # 504550; NO SUBSTITUTIONS",null,null,"Each",0,10]
[67,"ET Tube Flexi Set, Cuffed; 5.5 mm","RUSCH CORPORATION PRODUCT ONLY; ITEM # 504555; NO SUBSTITUTIONS",null,null,"Each",0,10]
[68,"ET Tube Flexi Set, Cuffed; 6.0 mm","RUSCH CORPORATION PRODUCT ONLY; ITEM # 504560; NO SUBSTITUTIONS",null,null,"Each",0,10]
[69,"ET Tube Flexi Set, Cuffed; 6.5 mm","RUSCH CORPORATION PRODUCT ONLY; ITEM # 504565; NO SUBSTITUTIONS",null,null,"Each",0,10]
[70,"ET Tube Flexi Set, Cuffed; 7.0 mm","RUSCH CORPORATION PRODUCT ONLY; ITEM # 504570; NO SUBSTITUTIONS",null,null,"Each",0,10]
[71,"ET Tube Flexi Set, Cuffed; 7.5 mm","RUSCH CORPORATION PRODUCT ONLY; ITEM # 504575; NO SUBSTITUTIONS",null,null,"Each",0,10]
[72,"ET Tube Flexi Set, Cuffed; 8.0 mm","RUSCH CORPORATION PRODUCT ONLY; ITEM # 504580; NO SUBSTITUTIONS",null,null,"Each",0,10]
[73,"ET Tube Flexi Set, Cuffed; 8.5 mm ","RUSCH CORPORATION PRODUCT ONLY; ITEM # 504585; NO SUBSTITUTIONS",null,null,"Each",0,10]
[74,"ET Tube Flexi Set, Cuffed; 9.0 mm","RUSCH CORPORATION PRODUCT ONLY; ITEM # 504590; NO SUBSTITUTIONS",null,null,"Each",0,10]
[75,"ET Tube Flexi Set, Uncuffed; 2.5 mm","RUSCH CORPORATION PRODUCT ONLY; ITEM # 506525; NO SUBSTITUTIONS",null,null,"Each",0,10]
[76,"ET Tube Flexi Set, Uncuffed; 3.0 mm","RUSCH CORPORATION PRODUCT ONLY; ITEM # 506530; NO SUBSTITUTIONS",null,null,"Each",0,10]
[77,"ET Tube Flexi Set, Uncuffed; 3.5 mm","RUSCH CORPORATION PRODUCT ONLY; ITEM # 506535; NO SUBSTITUTIONS",null,null,"Each",0,10]
[78,"ET Tube Flexi Set, Uncuffed; 4.0 mm","RUSCH CORPORATION PRODUCT ONLY; ITEM # 506540; NO SUBSTITUTIONS",null,null,"Each",0,10]
[79,"ET Tube Flexi Set, Uncuffed; 4.5 mm","RUSCH CORPORATION PRODUCT ONLY; ITEM # 506545; NO SUBSTITUTIONS",null,null,"Each",0,10]
[80,"ET Tube Flexi Set, Uncuffed; 5.0 mm","RUSCH CORPORATION PRODUCT ONLY; ITEM # 506550; NO SUBSTITUTIONS",null,null,"Each",0,10]
[81,"ET Tube Slick-Set, Uncuffed; 5.5 mm","RUSCH CORPORATION PRODUCT ONLY; ITEM # 150055; NO SUBSTITUTIONS",null,null,"Each",0,10]
[82,"Meditrace Electrodes, Kendall 530 Foam Electrode, Adult","COVIDIEN PRODUCT ONLY; ITEM # 31013926; NO SUBSTITUTIONS",null,null,"600 Each\n30/pk x 20 ",0,600]
[83,"Meditrace Electrodes, Kendall 135 Foam Electrode, Pediatric","COVIDIEN PRODUCT ONLY; ITEM # 31439766; NO SUBSTITUTIONS",null,null,"600 Each\n5/pk x120",0,600]
[84,"I.V. Extension set, 8\", removable leur locking site, pinch clamp, spin lock connection",{"$nulls":3},"Each",0,50]
[85,"Web Alcohol Preps","COVIDIEN PRODUCT ONLY; ITEM # 6818; NO SUBSTITUTIONS",null,null,"4000 Each",0,4000]
[86,"Gallant Disposable Prep Razors","DYNAREX PRODUCT ONLY; ITEM # 4251; NO SUBSTITUTIONS",null,null,"Each",0,250]
[87,"Providine-Iodine Prep Pads","DYNAREX PRODUCT ONLY; ITEM # 1108; NO SUBSTITUTIONS",null,null,"Each",0,1000]
[88,"Transpore Surgical Tape; ½\" x 10 yards","3M PRODUCT ONLY; ITEM # 1527-0; NO SUBSTITUTIONS",null,null,"Each",0,24]
[89,"Transpore Surgical Tape; 1” x 10 yards","3M PRODUCT ONLY; ITEM # 1527-1; NO SUBSTITUTIONS",null,null,"Each",0,12]
[90,"Jamshidi Style Intraosseous Needles; 15 ga x 3/8” – 1 7/8” (adjustable length)","CARDINAL HEALTH PRODUCT ONLY; ITEM # DIN1515X; NI SUBSTITUTIONS",null,null,"Each",0,10]
[91,"Diagnostic Pen Light with Pupil Gauge","ADC PPRODUCT ONLY; ITEM # ADC351P; NO SUBSTITUTIONS",null,null,"Each",0,6]
[92,"Interlink Injection Site, Male Luer Lock Adapter","BAXTER PRODUCT ONLY; ITEM # 2N3399; NO SUBSTITUTIONS",null,null,"Each",0,200]
[93,"Adult Veni-Guard","CONMED PRODUCT ONLY; ITEM # 705-4431; NO SUBSTITUTIONS",null,null,"Each",0,500]
[94,"Sharps Container, red / white; 1 qt","COVIDIEN PRODUCT ONLY; ITEM # 8900SA; NO SUBSTITUTIONS",null,null,"Each",0,1]
[95,"Sharps Container, red / white; 5 qt","COVIDIEN PRODUCT ONLY; ITEM # 31144010; NO SUBSTITUTIONS",null,null,"Each",0,1]
[96,"BD™ Multi-Use One-Piece Sharps Collector; 3.3 qt","BECKTON-DICKINSON PRODUCT ONLY; ITEM # 305488; NO SUBSTITUTIONS",null,null,"Each",0,24]
[97,"Laryngoscope Blade, Miller; #0 Premature","RUSCH CORPORATION PRODUCT ONLY; ITEM # 004850050; NO SUBSTITUTIONS",null,null,"Each",0,20]
[98,"Laryngoscope Blade, Miller; #1 Infant","RUSCH CORPORATION PRODUCT ONLY; ITEM # 004851100; NO SUBSTITUTIONS",null,null,"Each",0,20]
[99,"Laryngoscope Blade, Miller; #2 Child","RUSCH CORPORATION PRODUCT ONLY; ITEM # 004852200; NO SUBSTITUTIONS",null,null,"Each",0,20]
[100,"Laryngoscope Blade, Miller; #3 Medium Adult","RUSCH CORPORATION PRODUCT ONLY; ITEM # 004853300; NO SUBSTITUTIONS",null,null,"Each",0,20]
[101,"Laryngoscope Blade, Macintosh; #2 Child","RUSCH CORPORATION PRODUCT ONLY; ITEM # 004802200; NO SUBSTITUTIONS",null,null,"Each",0,20]
[102,"Laryngoscope Blade, Macintosh; #3 Medium Adult","RUSCH CORPORATION PRODUCT ONLY; ITEM # 004803300; NO SUBSTITUTIONS",null,null,"Each",0,20]
[103,"Laryngoscope Blade, Macintosh; #4 Large Adult","RUSCH CORPORATION PRODUCT ONLY; ITEM # 004804400; NO SUBSTITUTIONS",null,null,"Each",0,20]
[104,"Surgilube Lubricant; Foilpac; 5 g","FOUGERA PRODUCT ONLY; ITEM # 0281-0205-45; NO SUBSTITUTIONS",null,null,"Each",0,144]
[105,"Esophageal Intubation Detector Bulb Model, Tube Chek-B ","AMBU PRODUCT ONLY; ITEM # 000172002; NO SUBSTITUTIONS",null,null,"Each",0,20]
[106,"Full Kit Nebulizer Set w / Mouthpiece, Tee Adapter, Reservoir; 7'","SALTER LABS PRODUCT ONLY; ITEM # 8900; NO SUBSTITUTIONS",null,null,"Each",0,50]
[107,"LSP Ventilation Circuit Valve, Disp, w/valve, Exhalation Filter, Adult Cuffed Mask, Swivel Connector FOR AUTOVENT 3999","ALLIED HEALTHCARE PRODUCT ONLY; ITEM # 21-L599-130EA; NO SUBSTITUTIONS",null,null,"Each",0,1]
[108,"Thomas Endotrachael Tube Holder, Adult","LAERDAL PRODUCT ONLY; ITEM # 600-10000; NO SUBSTITUTIONS",null,null,"Each",0,25]
[109,"Thomas Endotrachael Tube Holder, Child","LAERDAL PRODUCT ONLY; ITEM # 600-20000; NO SUBSTITUTIONS",null,null,"Each",0,25]
[110,"Combitube Roll-up Kit   37fr.","COVIDIEN PRODUCT ONLY; ITEM # 5-18437; NO SUBSTITUTIONS",null,null,"Each",0,4]
[111,"Combitube Roll-up Kit   41fr.","COVIDIEN PRODUCT ONLY; ITEM # 5-18441; NO SUBSTITUTIONS",null,null,"Each",0,4]
[112,"Coude Tip, Pediatric 10Fr x 70cm; 10 Fr x 70 cm, Bougie","SUN MED PRODUCT ONLY; ITEM 3 2120-17010; NO SUBSTITUTIONS",null,null,"Each",0,10]
[113,"Coude Tip, Adult 15Fr x 70cm; 15 Fr x 70 cm, Bougie","SUN MED PRODUCT ONLY; ITEM # 9-0212-70; NO SUBSTITUTIONS",null,null,"Each",0,10]
[114,"30 ml Syringe;","BECKTON-DICKINSON PRODUCT ONLY; ITEM # 301626; NO SUBSTITUTIONS",null,null,"Each",{"$f":"+I116/H116","v":0},100]
[115,"10 ml Syringe Luer-lock Tip","BECKTON-DICKINSON PRODUCT ONLY; ITEM # 309604; NO SUBSTITUTIONS",null,null,"Each",{"$f":"+I117/H117","v":0},100]
[116,"1cc u-100 Insulin Syrenge","BECKTON-DICKINSON PRODUCT ONLY; ITEM # 329424; NO SUBSTITUTIONS",null,null,"Each",0,100]
[117,"1 ml Syringe","BECKTON-DICKINSON PRODUCT ONLY; ITEM # 309602; NO SUBSTITUTIONS",null,null,"Each",0,100]
[118,"3 ml Syringe Luer-Lok Tip","BECKTON-DICKINSON PRODUCT ONLY; ITEM # 309657; NO SUBSTITUTIONS",null,null,"Each",0,100]
[119,"Naso-gastric or Gastric sump tube; 42 inch L, 8 French, 2.7 mm OD",{"$nulls":3},"Each"]
[120,"Naso-gastric or Gastric sump tube; 48 inch L, 12 French, 4.0 mm OD",{"$nulls":3},"Each"]
[121,"Naso-gastric or Gastric sump tube; 48 inch L, 14 French, 4.7 mm OD",{"$nulls":3},"Each"]
[122,"Naso-gastric or Gastric sump tube; 48 inch L, 16 French, 5.3 mm OD",{"$nulls":3},"Each"]
[123,"Compound Tinture of Benzoin U.S.P., 10% Swabstick (1's)",{"$nulls":3},"Each"]
[124,"Philips HeartStart MRX Monitor Paper 76X25",{"$nulls":3},"Each roll"]
[125,"Nail Polish Remover Pad",{"$nulls":3},"100 Each"]
[126,"Adult/Child Pre-Connect Combo Defib Pad for Philips HeartStart MRX",{"$nulls":3},"Each"]
[127,"HeartStart Infant Combo Plus Pads for Philips HeartStart MRX",{"$nulls":3},"Each"]
[128,"Supraglottic Airway Kit, King LTS-D Adult, incl Tube, 60cc Syringe, Lube, Yellow, Size 3",{"$nulls":3},"Each"]
[129,"Supraglottic Airway Kit, King LTS-D Adult, incl Tube, 60cc Syringe, Lube, Red, Size 4",{"$nulls":3},"Each"]
[130,"Supraglottic Airway Kit, King LTS-D Adult, incl Tube, 60cc Syringe, Lube, Purple, Size 5",{"$nulls":3},"Each"]